[Event "WYCC 2018 G18"]
[Site "Halkidiki"]
[Date "2018.10.29"]
[Round "10"]
[White "Garcia Martin, Marta"]
[Black "Injac, Teodora"]
[Result "1/2-1/2"]
[ECO "B90"]
[WhiteElo "2329"]
[BlackElo "2258"]
[Annotator "NA"]
[PlyCount "113"]
[EventDate "2018.10.20"]
[EventType "swiss"]
[EventCountry "GRE"]
[SourceTitle "playchess.com"]
[Source "ChessBase"]
[SourceQuality "1"]
[TimeControl "40/5400+30:1800+30"]

1. e4 {[%emt 0:00:00]} c5 {[%emt 0:00:00]} 2. Nf3 {[%emt 0:00:00]} d6 {[%emt 0:00:00]} 3. d4 {[%emt 0:00:00]} cxd4 {[%emt 0:00:00]} 4. Nxd4 {[%emt 0:00:00]} Nf6 {[%emt 0:00:00]} 5. Nc3 {[%emt 0:00:00]} a6 {[%emt 0:00:03]} 6. f3 {[%emt 0:00:07]} e5 {[%emt 0:00:37]} 7. Nb3 {[%emt 0:00:06]} Be7 {[%emt 0:02:49]} 8. Be3 {[%emt 0:00:11]} Be6 {[%emt 0:00:25]} 9. Qd2 {[%emt 0:00:18]} Nbd7 {[%emt 0:00:52]} 10. g4 {[%emt 0:01:26]} O-O {[%emt 0:01:27]} 11. O-O-O {[%emt 0:00:55]} b5 {[%emt 0:00:35]} 12. g5 {[%emt 0:00:14]} Nh5 {[%emt 0:00:23]} 13. Kb1 $146 {[%emt 0:00:31] B90: Sicilian Najdorf: Unusual White 6th moves, 6 Be3 Ng4 and 6 Be3 e5} (13. Nd5 Bxd5 14. exd5 f6 15. gxf6 Bxf6 16. Kb1 Nf4 17. Na5 Nb6 18. Nc6 Qc7 19. Bxf4 exf4 20. c3 Rae8 21. Rg1 {½-½ (88) So,W (2776)-Wojtaszek,R (2727) Batumi 2018}) 13... Nb6 {[%emt 0:01:40]} 14. Nd5 {[%emt 0:00:55]} Nxd5 {[%emt 0:02:52]} 15. exd5 {[%emt 0:00:07]} Bd7 {[%emt 0:00:08]} 16. Na5 {[%emt 0:01:39]} Qc7 {[%emt 0:00:39]} 17. Bd3 {[%emt 0:01:12]} Rab8 {[%emt 0:02:20]} 18. Rhe1 {[%emt 0:02:28]} b4 {[%emt 0:15:37]} 19. Nc6 {[%emt 0:00:19]} Bxc6 {[%emt 0:00:39]} 20. dxc6 {[%emt 0:00:06]} d5 {[%emt 0:08:49]} 21. Bf5 {[%emt 0:00:55]} d4 {[%emt 0:04:49]} 22. Bf2 {[%emt 0:00:11]} Nf4 {[%emt 0:07:25]} 23. Bxd4 {[%emt 0:31:37]} exd4 {[%emt 0:08:50]} 24. Rxe7 {[%emt 0:00:06]} Qxe7 {[%emt 0:00:16]} 25. Qxf4 {[%emt 0:00:05]} g6 {[%emt 0:01:21]} 26. c7 {[%emt 0:11:04]} Rbe8 {[%emt 0:03:33]} 27. c8=Q {[%emt 0:09:28]} Rxc8 {[%emt 0:00:06]} 28. Bxc8 {[%emt 0:00:05]} Rxc8 {[%emt 0:00:03]} 29. Rxd4 {[%emt 0:01:30]} Qe2 {[%emt 0:07:47]} 30. Qd2 {[%emt 0:01:43]} Qxf3 {[%emt 0:00:23]} 31. b3 {[%emt 0:12:38]} a5 {[%emt 0:04:46]} 32. Rd5 {[%emt 0:03:37]} Ra8 {[%emt 0:02:33]} 33. Kb2 {[%emt 0:03:14]} Qe4 {[%emt 0:02:34]} 34. a3 {[%emt 0:08:40]} Qe7 {[%emt 0:09:25]} 35. a4 {[%emt 0:06:07]} Qc7 {[%emt 0:01:24]} 36. h4 {[%emt 0:02:30]} Re8 {[%emt 0:01:16]} 37. Qd4 {[%emt 0:01:36]} Rc8 {[%emt 0:00:16]} 38. Qc4 {[%emt 0:02:38]} Qb8 {[%emt 0:11:19]} 39. Qd3 {[%emt 0:00:33]} Qc7 {[%emt 0:00:19]} 40. Kb1 {[%emt 0:00:00]} Qb6 {[%emt 0:00:00]} 41. Qe4 {[%emt 0:09:05]} Qc7 {[%emt 0:05:56]} 42. Qd3 {[%emt 0:09:15]} Qb6 {[%emt 0:00:37]} 43. Kb2 {[%emt 0:04:17]} Qc7 {[%emt 0:00:30]} 44. Rb5 {[%emt 0:02:39]} Qa7 {[%emt 0:04:03]} 45. Rd5 {[%emt 0:01:44]} Qc7 {[%emt 0:00:31]} 46. Rd6 {[%emt 0:00:39]} Qc5 {[%emt 0:01:29]} 47. Rd5 {[%emt 0:02:29]} Qc7 {[%emt 0:00:11]} 48. Qd2 {[%emt 0:00:34]} Qb6 {[%emt 0:01:15]} 49. Qe2 {[%emt 0:01:12]} Qc7 {[%emt 0:00:55]} 50. Rd3 {[%emt 0:00:30]} Qc5 {[%emt 0:00:54]} 51. Kb1 {[%emt 0:01:23]} Qc6 $11 {[%emt 0:01:09]} 52. Rd1 {[%emt 0:00:25]} Qc5 {[%emt 0:02:40]} 53. Rf1 {[%emt 0:01:18]} Qc6 {[%emt 0:04:23]} 54. Qf2 {[%emt 0:00:31]} Qc7 {[%emt 0:01:25]} 55. Re1 {[%emt 0:01:11]} Qd6 {[%emt 0:02:21]} 56. Rf1 {[%emt 0:00:25]} Qc7 {[%emt 0:00:05]} 57. Re1 {[%emt 0:00:07]} 1/2-1/2

[Event "WYCC 2018 G18"]
[Site "Halkidiki"]
[Date "2018.10.29"]
[Round "10"]
[White "Kiolbasa, Oliwia"]
[Black "Janiashvili, Mariami"]
[Result "1/2-1/2"]
[ECO "C18"]
[WhiteElo "2254"]
[BlackElo "2081"]
[Annotator "NA"]
[PlyCount "68"]
[EventDate "2018.10.20"]
[EventType "swiss"]
[EventCountry "GRE"]
[SourceTitle "playchess.com"]
[Source "ChessBase"]
[SourceQuality "1"]
[TimeControl "40/5400+30:1800+30"]

1. e4 {[%emt 0:00:00]} e6 {[%emt 0:00:00]} 2. d4 {[%emt 0:00:00]} d5 {[%emt 0:00:00]} 3. Nc3 {[%emt 0:00:00]} Bb4 {[%emt 0:00:18]} 4. e5 {[%emt 0:00:24]} c5 {[%emt 0:00:05]} 5. a3 {[%emt 0:00:12]} Bxc3+ {[%emt 0:00:05]} 6. bxc3 {[%emt 0:00:07]} Ne7 {[%emt 0:00:25]} 7. h4 {[%emt 0:01:35]} Qc7 {[%emt 0:00:32]} 8. Nf3 {[%emt 0:03:39]} b6 {[%emt 0:00:14]} 9. h5 {[%emt 0:03:06]} h6 {[%emt 0:00:15]} 10. Bb5+ {[%emt 0:11:03]} Bd7 {[%emt 0:00:09]} 11. Bd3 {[%emt 0:00:31]} Ba4 {[%emt 0:00:06] C19: Französische Verteidigung (Nimzowitsch-Variante)} 12. Rh4 {[%emt 0:13:48]} (12. Bd2 Nd7 13. O-O a6 14. Re1 Bb5 15. Bxb5 axb5 16. Qe2 O-O 17. Qxb5 Ra5 18. Qe2 Ra4 19. g4 Rfa8 20. Bc1 cxd4 21. cxd4 {0-1 (40) Hansen,E (2616)-So,W (2822) chess.com INT 2017}) 12... cxd4 {[%emt 0:04:14]} 13. cxd4 {[%emt 0:02:29]} Qc3+ {[%emt 0:00:13]} 14. Bd2 {[%emt 0:00:29]} Qxd3 {[%emt 0:00:09]} 15. cxd3 {[%emt 0:00:10]} Bxd1 {[%emt 0:00:03]} 16. Kxd1 {[%emt 0:01:06]} Nbc6 {[%emt 0:05:57]} 17. Rf4 $146 {[%emt 0:06:41]} ({Vorgänger:} 17. Rg4 Nf5 18. Rc1 Kd7 19. Rf4 {½-½ (58) Nitin,S (2365)-Martinovic,S (2521) Chennai 2011}) 17... Rc8 {[%emt 0:03:04]} 18. Rb1 {[%emt 0:03:10]} g5 {[%emt 0:04:18]} 19. hxg6 $11 {[%emt 0:01:49]} Nxg6 {[%emt 0:00:30]} 20. Rg4 {[%emt 0:01:07]} Kd7 {[%emt 0:02:02]} 21. a4 {[%emt 0:15:31]} Rcg8 {[%emt 0:06:56]} 22. Ke2 {[%emt 0:10:52]} h5 {[%emt 0:06:05]} 23. Rg3 {[%emt 0:02:33]} Nge7 {[%emt 0:01:34]} 24. Rxg8 {[%emt 0:00:41]} Rxg8 {[%emt 0:00:00]} 25. g3 {[%emt 0:00:24]} Nf5 {[%emt 0:00:52]} 26. Bc3 {[%emt 0:00:18]} Rg4 {[%emt 0:01:29]} 27. a5 {[%emt 0:00:22]} Kc7 {[%emt 0:00:31]} 28. axb6+ {[%emt 0:00:49]} axb6 {[%emt 0:00:28]} 29. Rh1 {[%emt 0:00:38]} Ng7 {[%emt 0:05:25]} 30. Rb1 {[%emt 0:03:46]} Rg6 {[%emt 0:02:28]} 31. Nh4 {[%emt 0:02:01]} Rg4 {[%emt 0:03:37]} 32. Nf3 {[%emt 0:00:10]} Rg6 {[%emt 0:10:26]} 33. Nh4 {[%emt 0:00:09]} Rh6 {[%emt 0:00:12]} 34. Ke3 {[%emt 0:02:03]} Rh8 {[%emt 0:17:47]} 1/2-1/2

[Event "WYCC 2018 G18"]
[Site "Halkidiki"]
[Date "2018.10.29"]
[Round "10"]
[White "Afonasieva, Anna"]
[Black "Dimitrova, Aleksandra"]
[Result "0-1"]
[ECO "E16"]
[WhiteElo "2245"]
[BlackElo "2228"]
[Annotator "NA"]
[PlyCount "96"]
[EventDate "2018.10.20"]
[EventType "swiss"]
[EventCountry "GRE"]
[SourceTitle "playchess.com"]
[Source "ChessBase"]
[SourceQuality "1"]
[TimeControl "40/5400+30:1800+30"]

1. d4 {[%emt 0:00:00]} Nf6 {[%emt 0:00:00]} 2. Nf3 {[%emt 0:00:00]} e6 {[%emt 0:00:00]} 3. c4 {[%emt 0:00:00]} b6 {[%emt 0:00:00]} 4. g3 {[%emt 0:00:00]} Bb7 {[%emt 0:00:00]} 5. Bg2 {[%emt 0:00:00]} Bb4+ {[%emt 0:00:00]} 6. Bd2 {[%emt 0:00:00]} a5 {[%emt 0:00:00]} 7. O-O {[%emt 0:00:52]} O-O {[%emt 0:00:02]} 8. Bf4 {[%emt 0:02:18]} Be7 {[%emt 0:00:24]} 9. Nc3 {[%emt 0:03:52]} Ne4 {[%emt 0:02:55]} 10. Qc2 {[%emt 0:05:29]} Nxc3 {[%emt 0:00:16]} 11. bxc3 {[%emt 0:01:27]} d6 {[%emt 0:03:59]} 12. c5 {[%emt 0:09:13]} (12. Ng5 $14 Bxg5 13. Bxb7) 12... Qc8 {[%emt 0:22:11]} 13. cxd6 {[%emt 0:11:58]} cxd6 {[%emt 0:01:45]} 14. Qb3 {[%emt 0:01:26]} Nd7 {[%emt 0:02:12]} 15. c4 {[%emt 0:00:41]} Be4 {[%emt 0:07:44]} 16. Nd2 {[%emt 0:04:19]} Bxg2 $11 {[%emt 0:01:00]} 17. Kxg2 {[%emt 0:00:05]} a4 {[%emt 0:09:31]} 18. Qf3 {[%emt 0:02:17]} g5 {[%emt 0:10:12]} 19. Be3 {[%emt 0:02:46]} f5 {[%emt 0:00:19]} 20. Kh1 {[%emt 0:02:51]} Kh8 {[%emt 0:03:31]} 21. Qg2 {[%emt 0:10:36]} f4 {[%emt 0:01:14]} 22. gxf4 {[%emt 0:00:26]} gxf4 {[%emt 0:00:02]} 23. Rg1 {[%emt 0:00:13]} Bf6 {[%emt 0:05:59]} 24. Ne4 {[%emt 0:07:55]} Qb7 {[%emt 0:03:05]} 25. Nxf6 {[%emt 0:03:02]} Qxg2+ {[%emt 0:00:27]} 26. Rxg2 {[%emt 0:00:05]} Rxf6 {[%emt 0:01:15]} 27. Bd2 {[%emt 0:00:22]} Rc8 {[%emt 0:03:42]} 28. Rag1 {[%emt 0:01:59]} Rf7 {[%emt 0:02:25]} 29. Bb4 {[%emt 0:01:00]} d5 {[%emt 0:04:05]} 30. c5 {[%emt 0:02:31]} bxc5 {[%emt 0:03:55]} 31. dxc5 {[%emt 0:00:05]} h6 {[%emt 0:01:43]} 32. Rg6 {[%emt 0:12:20]} Kh7 {[%emt 0:00:24]} 33. Bc3 {[%emt 0:00:31]} d4 {[%emt 0:01:31]} 34. Bxd4 {[%emt 0:06:43]} e5 {[%emt 0:00:15]} 35. Ba1 {[%emt 0:06:06]} Rxc5 {[%emt 0:00:08]} 36. Ra6 {[%emt 0:00:22]} Rc2 {[%emt 0:03:30]} 37. Rxa4 {[%emt 0:00:28]} Rxe2 {[%emt 0:00:23]} 38. Ra7 {[%emt 0:02:02]} Rxf2 {[%emt 0:01:14]} 39. Rd1 {[%emt 0:00:22]} Kg6 {[%emt 0:01:31]} 40. Bc3 {[%emt 0:00:00]} f3 {[%emt 0:00:00]} 41. a4 {[%emt 0:15:14]} Rc2 {[%emt 0:11:31]} 42. Be1 {[%emt 0:00:25]} e4 {[%emt 0:06:34]} 43. Bh4 {[%emt 0:08:26]} e3 {[%emt 0:03:27]} 44. Ra6+ {[%emt 0:00:26]} Kf5 {[%emt 0:02:57]} 45. Rxh6 {[%emt 0:05:15]} f2 {[%emt 0:02:00]} 46. Rhd6 {[%emt 0:02:05]} Ne5 {[%emt 0:04:16]} 47. Rb1 {[%emt 0:01:18]} Ke4 {[%emt 0:01:56]} 48. Rb4+ {[%emt 0:01:13]} Rc4 {[%emt 0:01:16]} 0-1

[Event "WYCC 2018 G18"]
[Site "Halkidiki"]
[Date "2018.10.29"]
[Round "10"]
[White "Chitlange Sakshi"]
[Black "Sevilla, Julia"]
[Result "1-0"]
[ECO "D70"]
[WhiteElo "2237"]
[BlackElo "1947"]
[Annotator "NA"]
[PlyCount "151"]
[EventDate "2018.10.20"]
[EventType "swiss"]
[EventCountry "GRE"]
[SourceTitle "playchess.com"]
[Source "ChessBase"]
[SourceQuality "1"]
[TimeControl "40/5400+30:1800+30"]

1. d4 {[%emt 0:00:00]} d5 {[%emt 0:00:00]} 2. c4 {[%emt 0:00:00]} c6 {[%emt 0:00:00]} 3. Nf3 {[%emt 0:00:00]} Nf6 {[%emt 0:00:00]} 4. Nbd2 {[%emt 0:00:00]} e6 {[%emt 0:00:00]} 5. g3 {[%emt 0:00:01] LiveBook: 467 Games} Nbd7 {[%emt 0:00:00]} 6. Bg2 {[%emt 0:00:09]} Bd6 {[%emt 0:00:20]} 7. O-O {[%emt 0:01:24]} O-O {[%emt 0:00:06]} 8. Qc2 {[%emt 0:01:33]} Qe7 {[%emt 0:05:03]} 9. e4 {[%emt 0:01:54]} dxe4 {[%emt 0:06:00]} 10. Nxe4 {[%emt 0:00:13]} Nxe4 {[%emt 0:01:39]} 11. Qxe4 {[%emt 0:00:09]} f5 {[%emt 0:10:04] E01: Catalan: Early deviations} (11... Re8 12. Bf4 Nf6 13. Bxd6 Nxe4 14. Bxe7 Rxe7 15. Rfe1 Nd6 16. b3 f6 17. Re2 Bd7 18. Rae1 Kf7 19. h4 Ree8 {½-½ (19) Leitao,R (2622)-Rodriguez Vila,A (2505) Cuiaba 2011}) 12. Qe2 {[%emt 0:05:09]} e5 {[%emt 0:01:22]} 13. Bg5 {[%emt 0:09:22]} Qe8 {[%emt 0:01:20]} 14. Nxe5 {[%emt 0:05:25]} Nxe5 {[%emt 0:03:51]} 15. dxe5 {[%emt 0:01:52]} Qxe5 {[%emt 0:00:34]} 16. Qd2 {[%emt 0:05:28]} Be7 {[%emt 0:06:56]} 17. Bf4 {[%emt 0:02:45]} Qf6 $146 {[%emt 0:02:26]} ({Predecessor:} 17... Qc5 18. Rfe1 Rd8 19. Qc3 Kf7 20. Be5 Bf8 21. Re2 Be6 22. b3 Re8 23. Bd4 Qa3 24. Qc2 {½-½ (24) Seibicke,R (2183)-Hollstein,F (2201) Germany 2006}) 18. Rfe1 {[%emt 0:01:47]} Re8 {[%emt 0:02:39]} 19. Bg5 {[%emt 0:09:19]} Qf8 {[%emt 0:05:13]} 20. Qe2 {[%emt 0:08:45]} Kf7 {[%emt 0:08:31]} 21. Qh5+ {[%emt 0:00:26]} Kg8 {[%emt 0:01:00]} 22. Rad1 {[%emt 0:03:13]} Qf7 {[%emt 0:12:50]} 23. Qe2 {[%emt 0:13:39]} Be6 {[%emt 0:01:16]} 24. Bxe7 {[%emt 0:00:25]} Rxe7 {[%emt 0:00:22]} 25. Qe5 {[%emt 0:04:51]} Rae8 {[%emt 0:04:38]} 26. Qc5 {[%emt 0:01:22]} h6 {[%emt 0:02:28]} 27. b3 {[%emt 0:01:12]} f4 {[%emt 0:03:16]} 28. Re4 {[%emt 0:04:16]} Bf5 {[%emt 0:05:12]} 29. Rxe7 {[%emt 0:02:05]} Rxe7 {[%emt 0:00:02]} 30. Bf3 {[%emt 0:03:38]} Kh7 {[%emt 0:02:32]} 31. Qd4 {[%emt 0:04:44]} Bc2 {[%emt 0:02:35]} 32. Rf1 {[%emt 0:00:31]} Rd7 {[%emt 0:02:20]} 33. Qxf4 {[%emt 0:01:55]} Qxf4 {[%emt 0:00:03]} 34. gxf4 {[%emt 0:00:05]} Rd4 {[%emt 0:01:22]} 35. Re1 {[%emt 0:02:35]} Rxf4 {[%emt 0:01:08]} 36. Kg2 {[%emt 0:00:04]} Rf7 {[%emt 0:00:15]} 37. Re5 {[%emt 0:01:01]} g6 {[%emt 0:05:35]} 38. Kg3 {[%emt 0:01:18]} Kg7 {[%emt 0:00:37]} 39. c5 {[%emt 0:00:57]} Kf6 {[%emt 0:01:07]} 40. Re8 {[%emt 0:00:00]} Re7 {[%emt 0:00:00]} 41. Ra8 {[%emt 0:03:07]} a6 {[%emt 0:03:02]} 42. Rh8 {[%emt 0:00:25]} h5 {[%emt 0:05:17]} 43. h4 {[%emt 0:01:07]} Ke5 {[%emt 0:00:59]} 44. Rd8 {[%emt 0:00:56]} Bf5 {[%emt 0:01:37]} 45. Bg2 {[%emt 0:05:37]} Rd7 {[%emt 0:01:57]} 46. Rxd7 {[%emt 0:00:34]} Bxd7 {[%emt 0:00:04]} 47. Kf3 {[%emt 0:00:05]} Kd4 {[%emt 0:01:33]} 48. Kf4 {[%emt 0:00:12]} Kxc5 {[%emt 0:00:21]} 49. Be4 {[%emt 0:00:04]} Kd6 {[%emt 0:18:26]} 50. Bxg6 {[%emt 0:00:26]} Ke7 {[%emt 0:00:37]} 51. Bxh5 {[%emt 0:01:20]} Kf6 {[%emt 0:00:11]} 52. b4 {[%emt 0:08:42]} b6 {[%emt 0:00:22]} 53. a3 {[%emt 0:01:08]} Bf5 {[%emt 0:02:17]} 54. Bf3 {[%emt 0:01:43]} c5 {[%emt 0:00:27]} 55. bxc5 {[%emt 0:00:05]} bxc5 {[%emt 0:00:00]} 56. Be4 {[%emt 0:00:12]} Be6 {[%emt 0:00:45]} 57. h5 {[%emt 0:00:25]} Kg7 {[%emt 0:01:12]} 58. Kg5 {[%emt 0:00:59]} Bg8 {[%emt 0:03:31]} 59. h6+ {[%emt 0:00:05]} Kh8 {[%emt 0:00:02]} 60. Kf4 {[%emt 0:00:27]} a5 {[%emt 0:01:24]} 61. Ke3 {[%emt 0:00:18]} Bc4 {[%emt 0:00:40]} 62. Bg6 {[%emt 0:00:16]} a4 {[%emt 0:00:32]} 63. f4 {[%emt 0:00:33]} Ba2 {[%emt 0:00:22]} 64. Kd2 {[%emt 0:00:44]} Bd5 {[%emt 0:00:09]} 65. Kc3 {[%emt 0:00:13]} Ba2 {[%emt 0:00:24]} 66. f5 {[%emt 0:00:25]} Bb1 {[%emt 0:00:03]} 67. Kc4 {[%emt 0:00:05]} Be4 {[%emt 0:00:30]} 68. Kxc5 {[%emt 0:00:04]} Bd3 {[%emt 0:00:11]} 69. Kd4 {[%emt 0:00:25]} Bb1 {[%emt 0:00:56]} 70. Ke5 {[%emt 0:00:06]} Bc2 {[%emt 0:00:26]} 71. Kf6 {[%emt 0:00:21]} Bb3 {[%emt 0:00:27]} 72. Kg5 {[%emt 0:00:12]} Bc2 {[%emt 0:00:45]} 73. f6 {[%emt 0:00:10]} Bb3 {[%emt 0:01:21]} 74. f7 {[%emt 0:00:22]} Bxf7 {[%emt 0:00:19]} 75. Bxf7 {[%emt 0:00:06]} Kh7 {[%emt 0:00:05]} 76. Be8 {[%emt 0:00:05]} 1-0

[Event "WYCC 2018 G18"]
[Site "Halkidiki"]
[Date "2018.10.29"]
[Round "10"]
[White "Hrescak, Ivana"]
[Black "Buchta, Agnieszka"]
[Result "0-1"]
[ECO "E32"]
[WhiteElo "2173"]
[BlackElo "1879"]
[Annotator "NA"]
[PlyCount "74"]
[EventDate "2018.10.20"]
[EventType "swiss"]
[EventCountry "GRE"]
[SourceTitle "playchess.com"]
[Source "ChessBase"]
[SourceQuality "1"]
[TimeControl "40/5400+30:1800+30"]

1. d4 {[%emt 0:00:00]} Nf6 {[%emt 0:00:00]} 2. c4 {[%emt 0:00:00]} e6 {[%emt 0:00:00]} 3. Nc3 {[%emt 0:00:00]} Bb4 4. Qc2 b6 {[%emt 0:00:59]} 5. a3 {[%emt 0:03:51]} Bxc3+ {[%emt 0:00:39]} 6. Qxc3 {[%emt 0:00:02]} d6 {[%emt 0:04:24]} 7. Bg5 {[%emt 0:01:33]} Bb7 {[%emt 0:03:04]} 8. f3 {[%emt 0:03:30]} h6 {[%emt 0:03:13]} 9. Bh4 {[%emt 0:00:11]} Qe7 {[%emt 0:03:14]} 10. e3 {[%emt 0:04:17]} O-O {[%emt 0:04:39]} 11. Bd3 {[%emt 0:01:38]} a5 {[%emt 0:01:45]} 12. Ne2 {[%emt 0:03:39]} a4 {[%emt 0:02:22]} 13. O-O {[%emt 0:00:51]} e5 {[%emt 0:07:06]} 14. Rfe1 {[%emt 0:07:21]} g5 {[%emt 0:12:35]} 15. Bg3 {[%emt 0:08:21]} e4 {[%emt 0:08:52]} 16. fxe4 {[%emt 0:00:16]} Bxe4 {[%emt 0:15:35]} 17. Rf1 {[%emt 0:09:51]} Nbd7 {[%emt 0:02:03]} 18. Rae1 {[%emt 0:05:14]} Rae8 {[%emt 0:04:33]} 19. Bxe4 {[%emt 0:03:05]} Qxe4 {[%emt 0:01:38]} 20. Bf2 {[%emt 0:04:45]} Qg6 {[%emt 0:07:45]} 21. Qb4 {[%emt 0:02:41]} Ng4 {[%emt 0:01:18]} 22. Qxa4 {[%emt 0:02:17]} Ndf6 {[%emt 0:01:51]} 23. Ng3 {[%emt 0:02:29]} h5 {[%emt 0:04:00]} 24. h3 {[%emt 0:07:31]} h4 {[%emt 0:00:49]} 25. Nh1 {[%emt 0:01:44]} Nh6 {[%emt 0:02:25]} 26. Qc6 {[%emt 0:05:46]} Ne4 {[%emt 0:00:55]} 27. Re2 {[%emt 0:07:30]} g4 {[%emt 0:01:24]} 28. hxg4 {[%emt 0:05:50]} Qxg4 {[%emt 0:00:58]} 29. Rc2 {[%emt 0:00:10]} h3 {[%emt 0:02:07]} 30. Be1 {[%emt 0:00:12]} Nf5 {[%emt 0:02:28]} 31. Rf3 {[%emt 0:07:25]} Kg7 {[%emt 0:02:14]} 32. Qd5 {[%emt 0:01:56]} h2+ {[%emt 0:00:22]} 33. Kxh2 {[%emt 0:00:58]} Rh8+ {[%emt 0:00:07]} 34. Kg1 {[%emt 0:00:53]} Qh5 {[%emt 0:01:02]} 35. Rh3 {[%emt 0:00:59]} Qd1 36. Qxf5 {[%emt 0:00:12]} Rxh3 {[%emt 0:00:52]} 37. Qg4+ {[%emt 0:00:53]} Qxg4 {[%emt 0:00:09]} 0-1

[Event "WYCC 2018 G18"]
[Site "Halkidiki"]
[Date "2018.10.29"]
[Round "10"]
[White "Gajcin, Marina"]
[Black "Martynkova, Olena"]
[Result "1/2-1/2"]
[ECO "C77"]
[WhiteElo "2153"]
[BlackElo "2188"]
[Annotator "NA"]
[PlyCount "67"]
[EventDate "2018.10.20"]
[EventType "swiss"]
[EventCountry "GRE"]
[SourceTitle "playchess.com"]
[Source "ChessBase"]
[SourceQuality "1"]
[TimeControl "40/5400+30:1800+30"]

1. e4 {[%emt 0:00:00]} e5 {[%emt 0:00:00]} 2. Nf3 {[%emt 0:00:00]} Nc6 {[%emt 0:00:02]} 3. Bb5 {[%emt 0:00:00]} a6 {[%emt 0:00:19]} 4. Ba4 {[%emt 0:00:00]} Nf6 {[%emt 0:00:22]} 5. d3 {[%emt 0:00:11]} d6 {[%emt 0:04:50]} 6. c3 {[%emt 0:02:25]} g6 {[%emt 0:10:11]} 7. d4 {[%emt 0:05:39]} Bd7 $11 {[%emt 0:09:13]} ({Of course not} 7... Nxe4 $6 8. d5 $18) 8. O-O {[%emt 0:12:32]} Bg7 {[%emt 0:13:31]} 9. Nbd2 {[%emt 0:19:14]} O-O {[%emt 0:09:39]} 10. Bc2 {[%emt 0:07:17]} Nh5 {[%emt 0:10:41]} 11. dxe5 {[%emt 0:02:17]} dxe5 {[%emt 0:03:53]} 12. Nb3 {[%emt 0:01:47]} b6 {[%emt 0:04:01]} 13. Bg5 {[%emt 0:04:18]} Qc8 {[%emt 0:01:28]} 14. a4 {[%emt 0:12:30]} a5 {[%emt 0:05:29]} 15. Nbd2 {[%emt 0:00:36]} h6 {[%emt 0:02:56]} 16. Be3 {[%emt 0:00:33]} Be6 {[%emt 0:02:50]} 17. Bb3 {[%emt 0:03:31]} Rd8 {[%emt 0:02:25]} 18. Bxe6 {[%emt 0:02:51]} Qxe6 {[%emt 0:00:07]} 19. Qe2 {[%emt 0:07:13]} Nf6 {[%emt 0:05:29]} 20. h3 {[%emt 0:00:42]} Rd7 {[%emt 0:00:33]} 21. Rfe1 {[%emt 0:03:26]} Rad8 {[%emt 0:02:33]} 22. Qc4 {[%emt 0:00:38]} Qxc4 {[%emt 0:02:32]} 23. Nxc4 {[%emt 0:00:01]} Nxe4 {[%emt 0:03:02]} 24. Bxh6 {[%emt 0:03:44]} Bxh6 {[%emt 0:00:08]} 25. Rxe4 {[%emt 0:00:04]} f5 {[%emt 0:01:00]} 26. Ree1 {[%emt 0:01:30]} e4 {[%emt 0:00:27]} 27. Nh4 {[%emt 0:00:51]} Kg7 {[%emt 0:03:48]} 28. g4 {[%emt 0:01:48]} Bg5 {[%emt 0:00:59]} 29. Ng2 {[%emt 0:00:08]} Rh8 {[%emt 0:00:59]} 30. gxf5 {[%emt 0:01:55]} gxf5 {[%emt 0:00:07]} 31. Rad1 {[%emt 0:01:21]} Rxd1 {[%emt 0:01:18]} 32. Rxd1 {[%emt 0:00:01]} Rd8 {[%emt 0:00:33]} 33. Rxd8 {[%emt 0:01:43]} Nxd8 {[%emt 0:00:25]} 34. Nge3 {[%emt 0:01:11]} 1/2-1/2